bitfinex/quotes_SOLUSD_20260305
["timestamp","ask_amount","ask_price","bid_price","bid_amount"]
[1772714740630,10.86968336,91.999,91.928,0.89598059]
[1772714741049,5.00519922,91.99,91.933,0.28432314]
[1772714741247,10.86968336,91.999,91.932,3.69383402]
[1772714741248,10.86968336,91.999,91.935,0.89598059]
[1772714741428,5.00519922,91.99,91.936,1.03814216]
[1772714741627,5.00519922,91.99,91.938,1.03814216]
[1772714741830,10.86968336,91.999,91.939,1.03814216]
[1772714742028,10.86968336,91.999,91.94,1.18030373]
[1772714742360,10.86968336,91.999,91.946,0.89598059]
[1772714742853,0.10730473,91.998,91.947,0.89598059]
[1772714743155,10.86968336,91.999,91.949,0.89598059]
[1772714743354,10.86968336,91.999,91.951,0.89598059]
[1772714743944,0.10864185,91.989,91.951,0.89598059]
[1772714744650,10.87086499,91.989,91.952,10.87523925]
[1772714744834,10.87086499,91.989,91.953,0.89598059]
[1772714745039,0.10882947,91.997,91.953,0.89598059]
[1772714745238,1e-08,92.0,91.953,0.89598059]
[1772714746654,6.85073242,92.01,91.994,0.89598059]
[1772714746957,164.9,92.063,91.982,0.89598059]
[1772714746958,4.99137336,92.02,91.982,0.89598059]
[1772714747155,0.11032934,92.019,91.982,0.89598059]
[1772714747743,0.11048999,92.029,91.982,0.89598059]
[1772714748961,0.11082155,92.04,91.984,0.904105]
[1772714749160,10.86437561,92.044,91.986,3.69383402]
[1772714749349,10.86437561,92.044,91.988,0.904105]
[1772714749548,10.86437561,92.044,91.99,0.904105]
[1772714749742,4.99137336,92.06,91.991,0.904105]
[1772714749947,10.86413315,92.046,91.993,0.904105]
[1772714750159,4.99137336,92.06,91.995,0.904105]
[1772714750370,4.99137336,92.06,91.996,0.904105]
[1772714750555,4.99137336,92.06,91.997,1.18842814]
[1772714750751,0.11228795,92.046,92.001,0.904105]
[1772714750950,0.11228795,92.046,91.971,1.08729925]
[1772714750951,4.99137336,92.01,91.977,0.904105]
[1772714751263,0.94489396,92.0,91.966,10.8735259]
[1772714751441,4.99137336,91.99,91.966,10.8735259]
[1772714751646,4.99137336,91.99,91.951,38.06375133]
[1772714751956,4.99137336,92.0,91.951,38.06375133]
[1772714752155,0.94489396,92.007,91.951,38.06375133]
[1772714752362,4.99137336,92.0,91.951,38.06375133]
[1772714752663,0.94489396,92.019,91.955,0.28432314]
[1772714752961,0.94489396,92.019,91.957,0.28432314]
[1772714753172,11.81114452,92.029,91.961,0.904105]
[1772714753554,11.81106493,92.029,91.961,0.904105]
[1772714753864,10.86562856,92.034,91.961,0.904105]
[1772714754056,0.94489396,92.033,91.961,0.904105]
[1772714754762,10.69711957,92.03,91.961,0.904105]
[1772714754949,10.69711957,92.03,91.966,1.04626657]
[1772714754950,10.86614002,92.029,91.966,1.04626657]
[1772714755367,0.94489396,92.028,91.966,1.04626657]
[1772714755866,0.94489396,92.039,91.966,1.04626657]
[1772714756053,0.94489396,92.029,91.966,1.04626657]
[1772714756855,10.69711957,92.03,91.972,0.904105]
[1772714756856,0.94489396,92.027,91.972,0.904105]
[1772714757050,0.94489396,92.027,91.973,1.18842814]
[1772714757268,0.94489396,92.027,91.975,0.904105]
[1772714757468,0.14216157,92.055,91.975,0.904105]
[1772714757469,0.94489396,92.036,91.977,0.904105]
[1772714757785,0.94489396,92.045,91.979,0.904105]
[1772714757959,0.94489396,92.045,91.98,1.18842814]
[1772714758157,0.94489396,92.045,91.981,0.904105]
[1772714758755,10.86436921,92.044,91.982,38.05092299]
[1772714758950,10.86436921,92.044,91.987,0.904105]
[1772714759155,0.94489396,92.043,91.99,1.04626657]
[1772714759453,0.94489396,92.039,91.99,1.04626657]
[1772714759655,0.94489396,92.039,91.99,0.904105]
[1772714760671,0.94489396,92.019,91.988,61.3]
[1772714760978,0.94489396,92.019,91.984,0.904105]
[1772714761290,0.94489396,92.019,91.968,3.69383402]
[1772714761291,0.94489396,92.017,91.986,10.87121953]
[1772714761581,0.94489396,92.017,91.939,104.4]
[1772714761582,0.94489396,92.009,91.948,0.904105]
[1772714761776,0.94489396,92.009,91.952,3.69383402]
[1772714761962,0.94489396,92.009,91.953,0.904105]
[1772714762161,10.86743897,92.018,91.947,92.44456044]
[1772714762162,0.94489396,91.989,91.947,38.06540724]
[1772714762368,10.69711957,91.98,91.948,0.904105]
[1772714762776,0.94489396,91.989,91.948,0.904105]
[1772714762985,10.69711957,91.98,91.948,0.904105]
[1772714763475,10.69711957,91.98,91.949,11.77969907]
[1772714763680,10.69711957,91.98,91.95,0.904105]
[1772714764063,0.94489396,91.989,91.95,0.904105]
[1772714764464,27.17433356,91.999,91.95,0.904105]
[1772714764465,0.94489396,91.999,91.95,0.904105]
[1772714764693,0.94489396,91.979,91.949,10.87559407]
[1772714764861,0.94489396,91.981,91.95,0.904105]
[1772714765066,0.94489396,91.979,91.949,10.87559407]
[1772714765263,0.94489396,91.979,91.918,3.69383402]
[1772714765264,10.69711957,91.96,91.918,0.904105]
[1772714765562,10.69711957,91.96,91.873,147.93795647]
[1772714765563,10.69711957,91.95,91.916,0.92232263]
[1772714765765,10.8750705,91.954,91.916,0.92232263]
[1772714765983,0.07415306,91.978,91.916,0.92232263]
[1772714766162,0.07415306,91.985,91.918,0.92232263]
[1772714766361,0.07415306,91.999,91.92,0.92232263]
[1772714766583,0.07415306,91.999,91.921,0.92232263]
[1772714766783,10.69711957,92.02,91.923,1.0644842]
[1772714766967,0.07561471,92.019,91.926,0.92232263]
[1772714767163,0.07561471,92.019,91.929,0.92232263]
[1772714767370,0.07561471,92.04,91.93,0.92232263]
[1772714767597,0.07561471,92.029,91.935,1.0644842]
[1772714767774,0.07561471,92.029,91.937,1.20664577]
[1772714767974,0.07561471,92.029,91.94,0.92232263]
[1772714768171,0.07561471,92.029,91.942,1.0644842]
[1772714768369,38.0281843,92.037,91.943,1.0644842]
[1772714768370,0.07705175,92.019,91.943,1.0644842]
[1772714768669,0.07705175,92.019,91.934,3.69383402]
[1772714768670,0.07705175,92.019,91.946,0.92232263]
[1772714768864,0.07705175,92.019,91.947,1.0644842]
[1772714769065,0.28432314,92.029,91.949,1.0644842]
[1772714769273,0.07846872,92.028,91.95,1.0644842]
[1772714769494,0.07846872,92.026,91.956,0.92232263]
[1772714769699,0.28432314,92.027,91.956,0.92232263]
[1772714769700,0.07987039,92.023,91.957,0.28432314]
[1772714769874,0.07987039,92.023,91.959,0.92232263]
[1772714770073,0.07987039,92.023,91.96,1.0644842]
[1772714770368,0.07987039,92.027,91.961,0.92232263]
[1772714770788,0.08125673,92.019,91.961,0.92232263]
[1772714771479,10.86732087,92.019,91.963,0.92232263]
[1772714771684,10.86732087,92.019,91.964,1.20664577]
[1772714771880,10.86732087,92.019,91.966,0.92232263]
[1772714772082,10.86732087,92.019,91.968,0.92232263]
[1772714772287,10.69711957,92.03,91.97,0.92232263]
[1772714772473,27.16135844,92.043,91.971,0.92232263]
[1772714772474,0.28432314,92.039,91.971,0.92232263]
[1772714772680,0.08263518,92.038,91.971,0.92232263]
[1772714773273,4.82477569,92.064,91.966,0.28432314]
[1772714773274,0.08399846,92.062,91.973,0.92232263]
[1772714773479,10.94813161,92.046,91.979,0.92232263]
[1772714773769,0.08533583,92.045,91.98,1.0644842]
[1772714774689,0.08665647,92.029,91.98,0.92232263]
[1772714775479,10.95279649,92.029,91.982,0.92232263]
[1772714775679,38.11814654,92.029,91.982,0.92232263]
[1772714775879,10.69711957,92.02,91.982,0.92232263]
[1772714776086,0.08680553,92.009,91.981,10.87181048]
[1772714776591,10.69711957,92.01,91.981,10.87181048]
[1772714776793,0.08680553,92.018,91.981,10.87181048]
[1772714777388,10.69711957,92.02,91.982,0.92232263]
[1772714777782,0.08940045,92.041,91.984,0.92232263]
[1772714777988,0.08940045,92.039,91.984,0.92232263]
[1772714778183,0.08940045,92.039,91.985,0.92232263]
[1772714778386,0.08940045,92.046,91.983,38.05050932]
[1772714778575,0.08940045,92.029,91.984,0.92232263]
[1772714778775,11.14906084,92.047,91.984,1.20664577]
[1772714778776,10.69711957,92.04,91.984,1.20664577]
[1772714778970,0.285014,92.047,91.987,0.94739047]
[1772714779174,0.285014,92.047,91.988,1.08955204]
[1772714779376,0.285014,92.047,91.989,1.08955204]
[1772714779577,0.09194567,92.039,91.989,1.08955204]
[1772714779894,0.09319687,92.029,91.99,10.87074682]
[1772714780099,0.09319687,92.019,91.985,10.87129433]
[1772714780293,0.09319687,92.019,91.986,0.94739047]
[1772714780488,0.09319687,92.019,91.985,10.87129433]
[1772714781095,0.09319687,92.019,91.976,0.94739047]
[1772714781480,0.09443783,92.009,91.976,0.94739047]
[1772714781992,0.09443783,92.009,91.977,10.87228328]
[1772714782988,54.32479709,92.039,91.977,10.87228328]
[1772714782989,10.69711957,92.03,91.977,38.0529915]
[1772714783181,10.69711957,92.03,91.978,0.94739047]
[1772714783182,0.09687018,92.029,91.978,0.94739047]
[1772714783985,10.96539208,92.019,91.98,0.94739047]
[1772714784185,0.09807121,92.039,91.98,0.94739047]
[1772714784495,27.163557,92.036,91.98,0.94739047]
[1772714784693,0.09807121,92.038,91.98,0.94739047]
[1772714784999,0.09807121,92.038,91.981,0.94739047]
[1772714785399,0.09924844,92.029,91.981,0.94739047]
[1772714786598,0.10040759,92.028,91.959,0.94739047]
[1772714786800,0.10040759,92.028,91.963,0.94739047]
[1772714787002,10.86614002,92.029,91.963,0.94739047]
[1772714787308,10.86539539,92.036,91.963,0.94739047]
[1772714787682,0.285014,92.047,91.963,0.94739047]
[1772714787887,0.285014,92.047,91.967,0.94739047]
[1772714788282,11.1491338,92.047,91.967,0.94739047]
[1772714788596,11.1491338,92.047,91.973,0.94881983]
[1772714788799,11.1491338,92.047,91.976,0.94881983]
[1772714788990,0.10492567,92.046,91.977,1.0909814]
[1772714789193,0.10492567,92.046,91.978,1.0909814]
[1772714789386,0.10492567,92.039,91.98,1.0909814]
[1772714789590,0.10492567,92.039,91.959,61.3]
[1772714789591,0.10602671,92.029,91.981,0.94881983]
[1772714790201,38.3091716,92.047,91.968,92.42345162]
[1772714790202,10.69711957,92.02,91.969,0.94881983]
[1772714790403,0.10602671,92.019,91.971,0.94881983]
[1772714790791,0.10712213,92.028,91.971,0.94881983]
[1772714791108,0.10712213,92.028,91.972,1.0909814]
[1772714791309,0.10712213,92.028,91.974,0.94881983]
[1772714791604,10.86554968,92.034,91.977,0.94881983]
[1772714791811,10.86554968,92.034,91.97,92.42144176]
[1772714791812,0.10703844,92.033,91.979,0.28432314]
[1772714791993,10.69711957,92.03,91.98,0.94881983]
[1772714792199,0.10703844,92.029,91.98,0.94881983]
[1772714792611,0.88377693,92.075,91.985,0.94881983]
[1772714792909,0.88377693,92.075,91.987,1.23314297]
[1772714793100,0.88377693,92.075,91.989,0.94881983]
[1772714793304,0.88377693,92.085,91.991,0.94881983]
[1772714793495,0.88377693,92.093,91.996,1.0909814]
[1772714793699,0.88377693,92.102,92.008,0.94881983]
[1772714793903,0.88377693,92.109,92.013,0.94881983]
[1772714794313,0.88377693,92.109,92.018,0.94881983]
[1772714794498,0.88377693,92.109,92.022,179.30494878]
[1772714794710,10.85682025,92.108,92.027,0.94881983]
[1772714794909,0.1,92.13,92.028,1.0909814]
[1772714795117,0.1,92.13,92.034,0.94881983]
[1772714795290,10.85434553,92.129,92.038,0.94881983]
[1772714795629,0.88377693,92.128,92.038,0.94881983]
[1772714796196,37.99020937,92.129,92.038,0.94881983]
[1772714796391,0.88377693,92.128,92.04,0.94881983]
[1772714796697,1e-08,92.138,92.051,0.94881983]
[1772714796899,0.88377693,92.136,92.053,0.94881983]
[1772714797433,1e-08,92.138,92.053,0.94881983]
[1772714797434,1e-08,92.138,92.055,0.94881983]
[1772714797673,1e-08,92.138,92.061,0.94881983]
[1772714797802,1e-08,92.138,92.062,1.0909814]
[1772714798111,10.85340308,92.137,92.064,1.0909814]
[1772714798411,0.88377693,92.136,92.066,1.0909814]
[1772714798595,0.88377693,92.134,92.069,0.94881983]
[1772714798794,0.88377693,92.134,92.071,0.94881983]
[1772714799098,0.88377693,92.129,92.071,0.94881983]
[1772714799994,0.88377693,92.119,92.07,2.59763884]
[1772714800505,0.88377693,92.119,92.071,0.94881983]
[1772714800814,0.88377693,92.117,92.073,0.94881983]
[1772714802019,10.69711957,92.11,92.07,2.59763884]
[1772714802202,0.88377693,92.109,92.07,2.59763884]
[1772714802402,0.88377693,92.099,92.049,10.86377907]
[1772714802818,0.88377693,92.097,92.052,0.94881983]
[1772714803214,10.85799908,92.098,92.052,0.94881983]
[1772714804928,0.88377693,92.106,92.054,0.94881983]
[1772714805121,0.88377693,92.089,92.053,10.863307]
[1772714805310,0.88377693,92.089,92.047,10.86399129]
[1772714805843,0.88377693,92.079,92.041,10.86471456]
[1772714806621,0.88377693,92.079,92.042,0.94881983]
[1772714807720,10.86035752,92.078,92.041,10.86471456]
[1772714807921,0.88377693,92.077,92.041,10.86471456]
[1772714808135,0.88377693,92.086,92.042,0.94881983]
[1772714808309,0.88377693,92.104,92.042,0.94881983]
[1772714808625,0.88377693,92.104,92.043,0.94881983]
[1772714809318,10.85712233,92.106,92.043,0.94881983]
[1772714809823,10.85646665,92.111,92.045,0.94987866]
[1772714810615,0.93066739,92.109,92.045,0.94987866]
[1772714811121,10.6719126,92.11,92.045,0.94987866]
[1772714811122,0.93066739,92.099,92.045,0.94987866]
[1772714811328,0.93066739,92.089,92.045,0.94987866]
[1772714811722,0.93066739,92.079,92.044,10.86436921]
[1772714811921,10.86035752,92.078,92.038,0.94987866]
[1772714812136,0.93066739,92.077,92.038,0.94987866]
[1772714813713,0.93066739,92.116,92.038,0.94987866]
[1772714813915,0.93066739,92.116,92.015,86.94214582]
[1772714813916,10.8585886,92.093,92.04,0.94987866]
[1772714814119,4.82477569,92.122,92.04,0.94987866]
[1772714814120,10.85807983,92.098,92.04,0.94987866]
[1772714814514,0.93066739,92.097,92.04,0.94987866]
[1772714814928,0.93066739,92.089,92.04,0.94987866]
[1772714815236,10.6719126,92.09,92.04,0.94987866]
[1772714815541,10.85807983,92.098,92.04,0.94987866]
[1772714815940,10.85807983,92.098,92.042,0.94987866]
[1772714816241,11.78874722,92.098,92.042,0.94987866]
[1772714817038,0.93066739,92.089,92.042,0.94987866]
[1772714817243,0.93066739,92.079,92.041,10.86472332]
[1772714818133,0.93066739,92.077,92.034,0.94987866]
[1772714820643,0.93066739,92.075,92.035,10.86543162]
[1772714820846,0.93066739,92.069,92.036,0.94987866]
[1772714821347,0.93066739,92.069,92.03,10.86590686]
[1772714823638,38.01207697,92.076,92.03,38.98084039]
[1772714823639,0.93066739,92.067,92.03,38.98084039]
[1772714823840,0.93066739,92.089,92.031,0.94987866]
[1772714826045,0.93066739,92.109,92.033,0.94987866]
[1772714826747,37.99350853,92.121,92.033,0.94987866]
[1772714826748,0.93066739,92.099,92.033,0.94987866]
[1772714828031,10.85799908,92.098,92.034,92.35717234]
[1772714828347,0.93066739,92.097,92.035,0.94987866]
[1772714829043,0.93066739,92.089,92.035,0.94987866]
[1772714830641,0.93066739,92.087,92.037,0.94987866]
[1772714833840,0.93066739,92.087,92.039,0.94987866]
[1772714834940,0.93066739,92.087,92.041,0.94987866]
[1772714835341,0.93066739,92.086,92.041,0.94987866]
[1772714836851,0.93066739,92.086,92.043,0.94987866]
[1772714837348,0.93066739,92.095,92.043,0.94987866]
[1772714837553,0.93066739,92.119,92.043,0.94987866]
[1772714837752,0.93066739,92.119,92.045,0.94987866]
[1772714838134,0.93066739,92.109,92.045,0.94987866]
[1772714839152,0.93066739,92.109,92.047,0.91569368]
[1772714839352,0.93066739,92.109,92.048,0.28432314]
[1772714839545,0.93066739,92.109,92.05,0.91569368]
[1772714839734,0.93066739,92.109,92.051,1.05785525]
[1772714839935,0.14216157,92.142,92.053,0.91569368]
[1772714839936,0.93097495,92.107,92.053,0.91569368]
[1772714841149,0.93097495,92.107,92.052,0.14216157]
[1772714841150,0.93097495,92.107,92.055,0.91569368]
[1772714841460,0.93097495,92.099,92.055,0.91569368]
[1772714843556,0.93097495,92.097,92.056,38.02033544]
[1772714843857,0.93097495,92.097,92.057,0.91569368]
[1772714844468,0.93097495,92.114,92.057,0.91569368]
[1772714844852,0.93097495,92.114,92.058,0.91569368]
[1772714845038,10.85334043,92.138,92.06,0.91569368]
[1772714845243,0.93097495,92.137,92.066,0.91569368]
[1772714845441,0.93097495,92.137,92.067,1.05785525]
[1772714845646,0.93097495,92.135,92.07,1.05785525]
[1772714845846,0.93097495,92.135,92.072,0.91569368]
[1772714846056,0.93097495,92.135,92.075,1.05785525]
[1772714846253,1e-08,92.138,92.077,0.91569368]
[1772714846444,1e-08,92.138,92.078,1.20001682]
[1772714846645,1e-08,92.138,92.08,0.91569368]
[1772714846861,1e-08,92.138,92.081,1.05785525]
[1772714847162,1e-08,92.138,92.083,0.91569368]
[1772714847467,1e-08,92.138,92.086,0.91569368]
[1772714847665,1e-08,92.138,92.091,1.20001682]
[1772714847856,1e-08,92.138,92.093,0.91569368]
[1772714849568,1e-08,92.138,92.091,0.91791491]
[1772714849867,1e-08,92.138,92.093,0.91791491]
[1772714850069,1e-08,92.138,92.094,0.91791491]
[1772714850365,1e-08,92.138,92.096,1.20223805]
[1772714850560,1e-08,92.138,92.098,0.91791491]
[1772714850762,1e-08,92.138,92.1,0.91791491]
[1772714850949,1e-08,92.138,92.1,0.28432314]
[1772714851155,1e-08,92.138,92.102,0.91791491]
[1772714851765,13.28046497,92.158,92.105,0.91791491]
[1772714852078,0.95466484,92.156,92.105,0.91791491]
[1772714852575,0.95466484,92.139,92.082,0.91791491]
[1772714853874,13.28046497,92.158,92.062,61.3]
[1772714853875,0.95466484,92.129,92.062,61.3]
[1772714854071,0.95466484,92.129,91.997,18.25596382]
[1772714854072,0.95466484,92.079,92.032,0.91791491]
[1772714854659,4.82477569,92.113,91.999,2.13160432]
[1772714854660,0.95466484,92.069,92.01,0.91791491]
[1772714854964,10.6719126,92.1,92.01,0.91791491]
[1772714854965,0.95466484,92.059,92.01,0.91791491]
[1772714855365,0.95466484,92.049,92.0,11.78748012]
[1772714855751,0.95466484,92.049,92.001,0.91791491]
[1772714855955,0.95466484,92.047,92.003,0.91791491]
[1772714856863,10.86389709,92.048,92.003,0.91791491]
[1772714857370,0.95466484,92.061,92.003,0.91791491]
[1772714858360,38.01785752,92.062,91.999,2.13160432]
[1772714858361,0.95466484,92.059,92.005,0.91791491]
[1772714860862,0.95466484,92.059,92.007,0.91791491]
[1772714861065,10.86184962,92.066,92.007,0.91791491]
[1772714861271,0.95466484,92.065,92.008,0.91791491]
[1772714861556,0.95466484,92.065,92.006,38.04099731]
[1772714861557,0.95466484,92.083,92.011,1.06007648]
[1772714861754,0.95466484,92.083,92.012,0.91791491]
[1772714861956,0.95466484,92.083,92.014,0.91791491]
[1772714862377,10.85945913,92.086,92.014,0.91791491]
[1772714862561,10.85879707,92.092,92.014,0.91791491]
[1772714862756,0.95466484,92.091,92.014,0.91791491]
[1772714863258,0.95466484,92.091,92.017,0.91791491]
[1772714863573,6.72503093,92.127,92.021,0.91791491]
[1772714863574,10.6719126,92.1,92.021,0.91791491]
[1772714863877,0.95466484,92.099,92.022,0.91791491]
[1772714864777,0.95466484,92.099,92.028,0.91791491]
[1772714865073,0.95466484,92.097,92.031,0.91791491]
[1772714865265,0.95466484,92.097,92.032,0.91791491]
[1772714867660,0.95466484,92.095,92.034,0.91791491]
[1772714867855,0.95466484,92.095,92.035,0.91791491]
[1772714868171,0.95466484,92.095,92.034,1.3708781]
[1772714868172,0.95466484,92.095,92.038,0.91791491]
[1772714868366,0.95466484,92.095,92.039,1.06007648]
[1772714868581,0.95466484,92.095,92.04,1.06007648]
[1772714868874,0.95466484,92.105,92.042,0.91178885]
[1772714869690,0.95466484,92.105,92.045,0.91178885]
[1772714870384,0.95466484,92.105,92.047,0.91178885]
[1772714870576,0.94035113,92.103,92.047,0.91178885]
[1772714872770,0.94035113,92.101,92.05,0.91178885]
[1772714874375,10.85752752,92.102,92.05,0.91178885]
[1772714874572,0.94035113,92.105,92.05,0.91178885]
[1772714874770,0.94035113,92.103,92.052,0.91178885]
[1772714876776,0.94035113,92.101,92.054,0.91178885]
[1772714878864,10.85670238,92.109,92.056,0.91178885]
[1772714879068,0.94035113,92.108,92.056,0.91178885]
[1772714882480,0.94035113,92.106,92.058,0.91178885]
[1772714883682,10.85434553,92.129,92.063,0.91178885]
[1772714883875,10.8539348,92.133,92.069,0.91178885]
[1772714884688,0.94035113,92.132,92.072,0.91178885]
[1772714886468,0.94035113,92.132,92.075,0.91178885]
[1772714886668,0.94035113,92.132,92.077,0.91178885]
[1772714886886,0.94035113,92.132,92.078,0.91178885]
[1772714887183,10.8541099,92.131,92.079,0.91178885]
[1772714887380,10.8541099,92.131,92.074,92.31704932]
[1772714887381,10.8541099,92.131,92.081,0.91178885]
[1772714888083,10.8541099,92.131,92.083,0.91178885]
[1772714888285,0.94035113,92.13,92.083,0.91178885]
[1772714888469,0.94035113,92.138,92.083,0.91178885]
[1772714888670,0.94035113,92.138,92.085,0.91178885]
[1772714888880,11.79259227,92.147,92.087,0.91178885]
[1772714889081,11.79173333,92.155,92.09,0.28432314]
[1772714889386,0.94035113,92.154,92.092,0.91178885]
[1772714890282,0.94035113,92.183,92.096,3.69383402]
[1772714890484,0.1,92.2,92.101,0.91178885]
[1772714890485,0.94035113,92.181,92.101,0.91178885]
[1772714890664,0.94035113,92.181,92.106,0.91178885]
[1772714890863,0.94035113,92.181,92.101,0.28432314]
[1772714890864,0.94035113,92.169,92.108,0.91178885]
[1772714891074,0.94035113,92.159,92.108,0.91178885]
[1772714891886,0.94035113,92.149,92.107,3.96178091]
[1772714892088,10.67168623,92.14,92.107,3.96178091]
[1772714892290,0.94035113,92.139,92.107,2.97748798]
[1772714892485,10.85328528,92.138,92.107,2.97748798]
[1772714892671,37.9864985,92.138,92.107,2.97748798]
[1772714895792,10.85328528,92.138,92.109,0.92760027]
[1772714897085,37.98202265,92.149,92.107,2.97748798]
[1772714897474,10.67168623,92.14,92.107,2.97748798]
[1772714899985,37.98608623,92.139,92.107,2.97748798]
[1772714901180,10.85316749,92.139,92.107,2.97748798]
[1772714901882,37.98608623,92.139,92.107,2.97748798]
[1772714903184,10.85316749,92.139,92.108,0.92760027]
[1772714903990,10.85316749,92.139,92.107,2.97748798]
[1772714903991,37.98608623,92.139,92.107,2.97748798]
[1772714904298,37.98608623,92.139,92.09,0.92760027]
[1772714904485,10.67168623,92.13,92.092,0.92760027]
[1772714904693,37.98608623,92.139,92.092,0.92760027]
[1772714904887,10.67168623,92.13,92.092,0.92760027]
[1772714905304,10.67168623,92.16,92.061,0.93389621]
[1772714905305,10.85187194,92.15,92.094,0.92760027]
[1772714905503,10.67168623,92.14,92.089,10.85904766]
[1772714905710,10.67168623,92.14,92.09,0.92760027]
[1772714905888,37.9815518,92.15,92.09,0.92760027]
[1772714905889,10.67168623,92.13,92.09,0.92760027]
[1772714906089,10.67168623,92.13,92.085,10.8594993]
[1772714906289,10.67168623,92.13,92.086,0.92760027]
[1772714906891,10.67168623,92.12,92.081,10.85991147]
[1772714907409,10.85552383,92.119,92.077,10.86047547]
[1772714907607,10.85552383,92.119,92.078,0.92760027]
[1772714909000,37.99433341,92.119,92.078,0.92760027]
[1772714910002,37.99433341,92.119,92.079,10.86023957]
[1772714910314,37.99433341,92.119,92.08,0.92760027]
[1772714911198,10.67168623,92.11,92.063,0.92760027]
[1772714912418,10.85670238,92.109,92.065,0.92760027]
[1772714914728,4.98052763,92.11,92.067,0.92760027]
[1772714916100,10.85670238,92.109,92.069,0.92760027]
[1772714916501,4.98052763,92.1,92.069,0.92760027]
[1772714916901,4.98052763,92.1,92.061,1.86149648]
[1772714917102,4.98052763,92.09,92.061,0.93389621]
[1772714917296,4.98052763,92.09,92.062,10.862245]
[1772714918102,10.85906025,92.089,92.062,10.862245]
[1772714918303,4.98052763,92.08,92.061,0.93389621]
[1772714918803,10.85906025,92.089,92.062,10.862245]
[1772714919111,10.85906025,92.089,92.061,0.93389621]
[1772714919314,38.00671089,92.089,92.061,0.93389621]
[1772714920016,4.98052763,92.08,92.061,0.93389621]
[1772714921134,4.98052763,92.07,92.035,10.86542488]
[1772714921311,4.98052763,92.06,92.03,0.92760027]
[1772714921616,4.98052763,92.06,92.03,11.79355167]
[1772714922032,4.98052763,92.06,92.03,10.8659514]
[1772714922535,4.98052763,92.06,92.022,38.03438307]
[1772714922707,4.98052763,92.06,92.023,0.92760027]
[1772714923205,4.98052763,92.03,92.003,0.92760027]
[1772714923521,4.98052763,92.06,92.003,0.92760027]
[1772714923712,4.98052763,92.05,92.003,0.92760027]
[1772714924115,4.98052763,92.07,92.003,0.92760027]
[1772714924932,4.98052763,92.06,92.005,0.92760027]
[1772714925316,10.86141915,92.069,92.005,0.92760027]
[1772714925513,4.98052763,92.07,92.005,0.92760027]
[1772714925916,4.98052763,92.08,92.005,0.92760027]
[1772714926123,4.98052763,92.07,92.005,0.92760027]
[1772714927334,10.8600437,92.081,92.007,0.92760027]
[1772714927627,4.98052763,92.08,92.007,0.92760027]
[1772714927930,4.98052763,92.05,92.007,0.92760027]
[1772714928112,4.98052763,92.05,92.008,0.92760027]
[1772714929206,15.844197,92.05,92.009,10.86850199]
[1772714929408,15.844197,92.05,92.01,0.92760027]
[1772714930038,4.98052763,92.05,92.01,0.92760027]
[1772714931030,4.98052763,92.09,92.011,0.92760027]
[1772714931220,4.98052763,92.09,92.012,0.92760027]
[1772714931539,10.85906025,92.089,92.014,0.92760027]
[1772714931719,4.98052763,92.08,92.014,0.92760027]
[1772714932533,4.9842193,92.08,92.014,0.92760027]
[1772714933034,4.9842193,92.07,92.014,0.92760027]
[1772714933416,4.9842193,92.07,92.016,0.92760027]
[1772714937119,10.86141915,92.069,92.018,0.92760027]
[1772714938833,4.9842193,92.06,92.018,0.92760027]
[1772714939833,10.86141915,92.069,92.02,0.92760027]
[1772714940741,4.9842193,92.05,92.019,10.86732087]
[1772714941130,4.9842193,92.04,92.01,10.86838387]
[1772714941429,0.28432314,92.068,92.01,10.86838387]
[1772714941632,4.9842193,92.04,92.01,10.86838387]
[1772714941827,4.9842193,92.05,92.01,10.86838387]
[1772714942337,0.28432314,92.066,92.011,0.92760027]
[1772714942536,4.9842193,92.06,92.011,0.92760027]
[1772714942735,4.9842193,92.05,92.011,0.92760027]
[1772714944125,0.28432314,92.059,92.013,0.92760027]
[1772714944835,4.9842193,92.05,92.012,38.03851671]
[1772714945343,4.9842193,92.05,92.013,0.92760027]
[1772714946061,27.14853506,92.086,92.015,0.92760027]
[1772714946224,4.9842193,92.09,92.015,0.92760027]
[1772714946424,4.9842193,92.1,92.017,0.92760027]
[1772714946629,10.85717387,92.105,92.018,0.92760027]
[1772714946837,10.85717387,92.105,92.02,0.92760027]
[1772714947138,4.9842193,92.12,92.023,0.92760027]
[1772714947139,10.85549803,92.12,92.023,0.92760027]
[1772714947345,10.85586675,92.117,92.026,1.06976184]
[1772714947650,10.85572186,92.118,92.03,0.92760027]
[1772714947841,10.85572186,92.118,92.033,0.92760027]
[1772714948153,10.85572186,92.118,92.04,0.92760027]
[1772714948328,10.85572186,92.118,92.042,0.92760027]
[1772714948529,10.85572186,92.118,92.043,0.92760027]
[1772714948729,5.65865827,92.145,92.045,0.92760027]
[1772714948933,10.80283886,92.24,92.045,0.92760027]
[1772714948934,10.8496349,92.169,92.049,4.82477569]
[1772714949167,4.9842193,92.16,92.067,0.92760027]
[1772714949329,10.8496349,92.169,92.067,0.92760027]
[1772714950134,37.97372217,92.169,92.072,0.92760027]
[1772714950429,0.28432314,92.168,92.077,0.92760027]